Cogmind - Beta 13 @@@ ROGUE MODE // 2024.04.21 @ 13:43:08 Player: Exceptionally Mediocre Result: Destroyed by Y-54 Guardian with Flak Gun Performance ------------- Evolutions (0) 0 Regions Visited (4) 800 Robots Destroyed (43) 215 Value Destroyed (680) 680 Prototype IDs (0) 0 Alien Tech Used (0) 0 Bonus (127) 127 TOTAL SCORE: 1822 Bonus ------- Follower Combat Kills 127 Cogmind --------- Core Integrity 0/250 Matter 133/300 Energy 160/200 System Corruption 0% Temperature Warning (306) Movement Treading (560) Ox4 Location -7/Recycling Parts ------- > --- POWER (1) -------- Subdweller Power Source > --- PROPULSION (2) --- Spiked Treads > --- UTILITY (2) ------ Huge Storage Unit Light Armor Plating > --- WEAPON (2) ------- Light Cannon Light Cannon > --- INVENTORY (25) --- Light Nuclear Core Light Angular Momentum Engine Scrap Engine Medium Matter Pod (100) Experimental Sensor Array Signal Interpreter Propulsion Shielding Light Armor Plating Light Armor Plating Light Armor Plating Scrap Shield Medium Laser Subdweller Beam Cannon Subdweller Beam Cannon Light Assault Rifle Grenade Launcher Dirty Datajack (20) Mining Laser Flamer Makeshift Hammer Makeshift Hammer Peak State ------------ > --- POWER ------------ Light Nuclear Core > --- PROPULSION ------- Light Treads Spiked Treads > --- UTILITY ---------- Huge Storage Unit Structural Scanner > --- WEAPON ----------- Beamcaster Makeshift Hammer > --- INVENTORY -------- Subdweller Power Source Light Nuclear Core Light Angular Momentum Engine Medium Matter Pod Experimental Sensor Array Signal Interpreter Propulsion Shielding Light Armor Plating Light Armor Plating Light Armor Plating Light Armor Plating Light Armor Plating Scrap Shield Medium Laser Subdweller Beam Cannon Subdweller Beam Cannon Light Assault Rifle Light Cannon Light Cannon Grenade Launcher Dirty Datajack Mining Laser Flamer Makeshift Hammer [Rating: 22] Favorites ----------- Power Light Ion Engine Engine Light Ion Engine Power Core Light Nuclear Core Propulsion Light Treads Treads Light Treads Utility Structural Scanner Device Structural Scanner Storage Huge Storage Unit Protection Light Armor Plating Weapon Medium Laser Energy Gun Medium Laser Energy Cannon Subdweller Beam Cannon Ballistic Gun Light Assault Rifle Ballistic Cannon Light Cannon Launcher Grenade Launcher Impact Weapon Makeshift Hammer Slashing Weapon Mining Claw Build | -11 -10 -10 -10 -7 ------- Run | Yrd Mat Min Sub Rec Slots Evolved . | . . . . . Power . | . . . . . Propulsion . | . . . . . Utility . | . . . . . Weapon . | . . . . . Parts Attached 49 | 8 19 4 12 6 Power 9 | 1 4 1 2 1 Engine 8 | 1 4 1 1 1 Core 1 | . . . 1 . Reactor . | . . . . . Propulsion 8 | 2 2 . 4 . Treads 8 | 2 2 . 4 . Leg . | . . . . . Wheel . | . . . . . Hover . | . . . . . Flight . | . . . . . Utility 9 | 2 2 1 2 2 Device 3 | 1 1 . 1 . Storage 3 | 1 1 1 . . Processor . | . . . . . Hackware . | . . . . . Protection 3 | . . . 1 2 Artifact . | . . . . . Weapon 23 | 3 11 2 4 3 Energy Gun 10 | 3 6 . 1 . Energy Cannon 2 | . . . 1 1 Ballistic Gun 1 | . . 1 . . Ballistic Cannon 6 | . 3 . 1 2 Launcher 1 | . . 1 . . Special Weapon . | . . . . . Impact Weapon 1 | . . . 1 . Slashing Weapon 2 | . 2 . . . Piercing Weapon . | . . . . . Special Melee Weapon . | . . . . . Unidentified Prototypes . | . . . . . Parts Lost 14 | . 2 . 10 2 Power 4 | . 1 . 2 1 Propulsion 4 | . . . 4 . Utility 2 | . . . 1 1 Weapon 4 | . 1 . 3 . Highest Loss Streak 6 | . 1 . 6 3 To Critical Strikes . | . . . . . Average Slot Usage (%) 99 | . 99 100 97 80 Engine 11 | . 14 14 2 4 Core 2 | . . . 11 9 Treads 27 | . 28 28 25 14 Device 13 | . 14 14 10 . Storage 14 | . 14 14 14 14 Energy Gun 12 | . 22 6 10 . Ballistic Gun 4 | . . 7 2 . Ballistic Cannon 3 | . 3 . 9 9 Launcher 6 | . . 14 2 . Naked Turns . | . . . . . Heaviest Build 104 | 15 49 89 97 104 Greatest Support 40 | 40 40 40 40 20 Greatest Overweight (x) 5 | 4 1 2 4 5 Average Overweight (x) 1 | . . 1 2 5 Largest Inventory Capacity 25 | 8 20 25 25 25 Average Capacity 21 | 7 17 23 25 25 Most Carried 25 | 6 19 25 25 25 Average Carried 20 | 2 13 23 23 24 Final Capacity 25 | 8 20 25 25 25 Final Carried 25 | 6 19 25 24 23 Class Distribution -------------------- 71% | Mutant 27% | Scavenger-Mutant Dominant Class ---------------- Mutant | -10/Materials Scavenger-Mutant | -10/Mines Mutant | -10/Subcaves Mutant | -7/Recycling Resources | -11 -10 -10 -10 -7 ----------- Run | Yrd Mat Min Sub Rec Matter Collected 804 | 280 324 51 149 . Remotely . | . . . . . Salvage Created 1162 | 129 782 48 203 . Parts 84 | 10 59 7 8 . Haulers Intercepted 1 | . 1 . . . Recyclers Shooed 2 | . 2 . . . Parts Field Recycled . | . . . . . Retrieved Matter . | . . . . . Parts Self-Destructed 16 | . . . 16 . Prevented . | . . . . . Kills | -11 -10 -10 -10 -7 ------- Run | Yrd Mat Min Sub Rec Combat Hostiles Destroyed 22 | . 10 4 8 . Guns 10 | . 5 2 3 . Cannons 8 | . 4 . 4 . AOE 2 | . . 2 . . Classes Destroyed 11 | 3 6 . 2 . Worker 4 | 1 2 1 . . Builder 8 | . 8 . . . Tunneler 2 | 2 . . . . Hauler 1 | . 1 . . . Recycler 3 | 1 2 . . . Operator 1 | . 1 . . . Watcher 2 | . 2 . . . Swarmer 11 | . 3 4 4 . Grunt 7 | . 7 . . . Cobbler 1 | . . . 1 . Subdweller 4 | . . . 4 . Best Kill Streak 10 | 2 10 3 4 . Combat Bots Only 5 | . 5 3 4 . Max Kills in Single Turn 2 | 1 2 2 1 . Gunslinging . | . . . . . Exploded 2 | . . 2 . . Melee . | . . . . . Uniques/NPCs Destroyed . | . . . . . Combat | -11 -10 -10 -10 -7 -------- Run | Yrd Mat Min Sub Rec Hostile Shots Fired 231 | . 65 9 85 72 Missed 67 | . 23 2 19 23 Damage Taken 1704 | . 466 60 821 357 Core 254 | . 61 20 124 49 Absorbed by Shields . | . . . . . Core Remaining (%) 100 | 100 . . . . Volleys Fired 148 | 19 77 6 40 6 Largest 2 | 1 2 1 2 2 Hottest 160 | 50 100 50 110 160 Shots Fired 218 | 19 127 6 54 12 Gun 168 | 19 116 5 28 . Cannon 39 | . 11 . 16 12 Launcher 11 | . . 1 10 . Special . | . . . . . Kinetic 42 | . 11 1 22 8 Thermal 151 | 19 102 4 22 4 Explosive 11 | . . 1 10 . Electromagnetic 14 | . 14 . . . Robot Hit Streak 17 | 4 9 3 17 6 Robot Miss Streak 5 | 3 5 1 1 3 Penetration Max . | . . . . . Secondary Targets 1 | . 1 . . . Max Gunslinging Chain 1 | . 1 . . . Shots Hit Robots 142 | 11 81 4 39 7 Core Hits 64 | 5 36 6 16 1 Critical Kills . | . . . . . Critical Parts Destroyed 1 | . . . 1 . Critical Strikes 8 | 2 4 . 2 . Burn 6 | 2 4 . . . Blast 1 | . . . 1 . Smash 1 | . . . 1 . Melee Attacks 12 | . 6 . 6 . Impact 6 | . . . 6 . Slashing 6 | . 6 . . . Piercing . | . . . . . Sneak Attacks 1 | . 1 . . . Combat Hostiles . | . . . . . Follow-up Attacks . | . . . . . Damage Inflicted 2739 | 138 1336 141 985 139 Guns 1435 | 138 903 32 362 . Cannons 544 | . 160 . 245 139 Explosions 669 | . 223 109 337 . Melee 91 | . 50 . 41 . Ramming . | . . . . . Kinetic 514 | . 160 8 263 83 Thermal 1564 | 138 1002 24 344 56 Explosive 446 | . . 109 337 . Electromagnetic 124 | . 124 . . . Impact 41 | . . . 41 . Slashing 50 | . 50 . . . Piercing . | . . . . . Highest Corruption . | . . . . . Average Corruption . | . . . . . Corruption Purged . | . . . . . Corruption Blocked . | . . . . . Overload Shots . | . . . . . Overflow Damage 87 | . 11 30 46 . Projectiles 5 | . . . 5 . Explosions 41 | . 11 30 . . Melee 41 | . . . 41 . Knockbacks 3 | . 2 . 1 . Impact 1 | . . . 1 . Kinetic 2 | . 2 . . . Secondary . | . . . . . Self-Inflicted Damage 21 | . 21 . . . Shots 1 | . 1 . . . Rammed . | . . . . . Targets Rammed . | . . . . . Kicked . | . . . . . Crushed . | . . . . . Highest Temperature 386 | 90 386 20 30 294 Average Temperature 64 | 28 68 9 12 203 Received Heat Transfer 624 | . 192 6 312 114 Effects 2 | . 1 . . 1 Shutdowns 1 | . 1 . . . Energy Bleed 1 | . . . . 1 Siege Activations . | . . . . . Robots Corrupted . | . . . . . Combat Hostiles . | . . . . . Parts Fried . | . . . . . Impact Corruptions 2 | . . . 2 . Robots Melted 1 | . 1 . . . Combat Hostiles 1 | . 1 . . . Parts Melted 7 | 1 4 . 2 . Heat Transferred 4250 | 555 2955 74 592 74 Parts Sabotaged . | . . . . . Parts Stolen . | . . . . . Parts Stripped . | . . . . . Power Chain Reactions 2 | . 2 . . . Alert | -11 -10 -10 -10 -7 ------- Run | Yrd Mat Min Sub Rec Peak Influence 669 | 20 195 107 . 669 Initial 668 | . 13 13 . 668 Average 48 | 5 55 37 . 660 Maximum Alert Level 2 | . . . . 2 Low Security (%) 99 | 100 100 100 . . Level 1 . | . . . . . Level 2 . | . . . . 100 Level 3 . | . . . . . Level 4 . | . . . . . Level 5 . | . . . . . High Security . | . . . . . Max Security . | . . . . . Squads Dispatched 2 | . 2 . . . Investigation . | . . . . . Extermination . | . . . . . Reinforcement 2 | . 2 . . . Assault . | . . . . . Garrison . | . . . . . Intercept . | . . . . . Searches Triggered . | . . . . . Construction Impeded . | . . . . . Haulers Reinforced . | . . . . . Active Scanning Responses . | . . . . . Cargo Convoy Interrupts . | . . . . . Stealth | -11 -10 -10 -10 -7 --------- Run | Yrd Mat Min Sub Rec Distress Signals 1 | . 1 . . . Communications Jammed . | . . . . . Distress Signals . | . . . . . Times Spotted 73 | . 21 6 45 1 Peak Tracking Total 6 | . 4 3 6 1 Tactical Retreats 7 | . 1 . 6 . Traps | -11 -10 -10 -10 -7 ------- Run | Yrd Mat Min Sub Rec Traps Triggered 1 | . 1 . . . Indirectly . | . . . . . Trap Hack Attempts . | . . . . . Triggered . | . . . . . Disarmed . | . . . . . Reprogrammed . | . . . . . Reused . | . . . . . Traps Extracted . | . . . . . Installed . | . . . . . Triggered . | . . . . . Machines | -11 -10 -10 -10 -7 ---------- Run | Yrd Mat Min Sub Rec Machines Disabled 3 | . 1 1 1 . Max in Single Turn 1 | . 1 1 1 . Machines Repaired . | . . . . . Machines Dismantled . | . . . . . Machines Sabotaged . | . . . . . Overloaded Fab Kills . | . . . . . Hacking | -11 -10 -10 -10 -7 --------- Run | Yrd Mat Min Sub Rec Machines Accessed 2 | . 2 . . . Terminals 2 | . 2 . . . Fabricators . | . . . . . Repair Stations . | . . . . . Recycling Units . | . . . . . Scanalyzers . | . . . . . Garrison Access . | . . . . . Total Hacks 4 | . 4 . . . Successful 2 | . 2 . . . Failed 2 | . 2 . . . Catastrophic . | . . . . . Database Lockouts . | . . . . . Manual 4 | . 4 . . . Terminals 4 | . 4 . . . Fabricators . | . . . . . Repair Stations . | . . . . . Recycling Units . | . . . . . Scanalyzers . | . . . . . Garrison Access . | . . . . . Terminal Hacks . | . . . . . Fabricator Hacks . | . . . . . Repair Station Hacks . | . . . . . Recycling Unit Hacks . | . . . . . Scanalyzer . | . . . . . Garrison Access Hacks . | . . . . . Unauthorized Hacks 2 | . 2 . . . Terminals 2 | . 2 . . . Botnet 2 | . 2 . . . Fabricators . | . . . . . Repair Stations . | . . . . . Recycling Units . | . . . . . Scanalyzers . | . . . . . Garrison Access . | . . . . . Data Cores Recovered . | . . . . . Used . | . . . . . Hacking Detections 2 | . 2 . . . Full Trace Events . | . . . . . Feedback Events . | . . . . . Feedback Blocked . | . . . . . Robot Schematics Acquired . | . . . . . Robots Built . | . . . . . Authchips . | . . . . . Time . | . . . . . Total Robot Build Rating . | . . . . . Part Schematics Acquired . | . . . . . Parts Built . | . . . . . Authchips . | . . . . . Time . | . . . . . Total Part Build Rating . | . . . . . Parts Repaired . | . . . . . Time . | . . . . . Parts Recycled . | . . . . . Recycled Matter . | . . . . . Retrieved Matter . | . . . . . Retrieved Components . | . . . . . Parts Scanalyzed . | . . . . . Part Schematics Acquired . | . . . . . Parts Damaged . | . . . . . Bothacking | -11 -10 -10 -10 -7 ------------ Run | Yrd Mat Min Sub Rec Used RIF Installer . | . . . . . Robots Hacked . | . . . . . Non-combat . | . . . . . Combat . | . . . . . Robot Hacks Applied . | . . . . . Relay Couplers Released . | . . . . . Fabnet Peak Effective % . | . . . . . Robots Rewired . | . . . . . Allies Hacked . | . . . . . Hacks Repelled . | . . . . . Allies | -11 -10 -10 -10 -7 -------- Run | Yrd Mat Min Sub Rec Total Allies 2 | . . 2 . . Largest Group 2 | . . 2 . . Highest-Rated Group 50 | . . 50 . . Highest-Rated Ally 31 | . . 31 . . Total Orders . | . . . . . Ally Attacks 13 | . . 13 . . Total Damage 191 | . . 191 . . Kills 5 | . . 5 . . Allies Corrupted . | . . . . . Allies Melted . | . . . . . Intel | -11 -10 -10 -10 -7 ------- Run | Yrd Mat Min Sub Rec Robot Analysis Total . | . . . . . Derelict Logs Recovered 2 | . . 2 . . Drone Launches . | . . . . . Drone Recoveries . | . . . . . Exploration | -11 -10 -10 -10 -7 ------------- Run | Yrd Mat Min Sub Rec Turns Passed 5376 | 155 1574 2330 1284 33 Spaces Moved 1731 | 59 575 765 331 1 Core 14 | 14 . . . . Treads 1717 | 45 575 765 331 1 Legs . | . . . . . Wheels . | . . . . . Hover . | . . . . . Flight . | . . . . . Fastest Speed 50 | 50 160 240 320 660 Average Speed 280 | 168 224 299 350 660 Slowest Speed 660 | 250 240 320 560 660 Overloaded Moves . | . . . . . Propulsion Burnouts . | . . . . . Robots Hopped . | . . . . . Cave-ins Triggered . | . . . . . Exploration Rate (%) 41 | 4 82 98 23 2 Regions Visited 4 Branch Regions 3 Pre-discovered Areas 1 | . . 1 . . Known Exits Taken . | . . . . . Unknown Exits Taken 4 | 1 1 1 1 . Scrap Searched 2 | . . 1 1 . Spaces Dug 8 | . 3 . 5 . Terrain Destroyed 61 | . 10 6 43 2 Melee 5 | . 3 . 2 . Projectile 3 | . . . 1 2 AOE 53 | . 7 6 40 . Terrain Rammed . | . . . . . Walls Destroyed . | . . . . . Machines Disabled . | . . . . . Actions | -11 -10 -10 -10 -7 --------- Run | Yrd Mat Min Sub Rec Total 2028 | 92 719 803 400 14 Wait 18 | . 12 5 1 . Move 1727 | 58 574 764 330 1 Hop . | . . . . . Pick Up 50 | 7 20 14 8 1 Fast Attach 11 | 6 4 . 1 . Attach 12 | 1 1 . 7 3 Detach . | . . . . . Swap 26 | 1 14 4 4 3 Drop 24 | . 11 10 3 . Fire 148 | 19 77 6 40 6 Melee 12 | . 6 . 6 . Ram . | . . . . . Kick . | . . . . . Crush . | . . . . . Escape Stasis . | . . . . . Rewire . | . . . . . Trap . | . . . . . Miscellaneous . | . . . . . Route ------- -11/Scrapyard -10/Materials (discovered 3 exits: [*Mat x2] / [*Min]) -10/Mines (discovered 3 exits: [*Mat x2] / [*Sub]) -10/Subcaves -7/Recycling History --------- Turn | Location | Event 38 | -11/Scrapyard | Discovered new exit (range 14) 156 | -11/Scrapyard | Entered Materials 340 | -10/Materials | Build established: Mutant 824 | -10/Materials | Discovered new exit (range 8) 1042 | -10/Materials | Discovered new exit (range 16) 1513 | -10/Materials | Discovered new exit (range 5) 1730 | -10/Materials | Entered Mines 1748 | -10/Mines | Met a Derelict bent on vengeance 1924 | -10/Mines | Learned location of Zion (-6) 2106 | -10/Mines | Learned 2 Materials zone layouts 2305 | -10/Mines | Discovered new exit (range 12) 2499 | -10/Mines | Discovered new exit (range 9) 2748 | -10/Mines | Found a damaged Exp. Sensor Array with a note attached 2755 | -10/Mines | Found Prototype Device 3022 | -10/Mines | Build established: Scavenger-Mutant 4038 | -10/Mines | Discovered new exit (range 6) 4060 | -10/Mines | Entered Subcaves 4074 | -10/Subcaves | Shifting Twisted Machinery released Scrap Shield 4341 | -10/Subcaves | Core integrity fell below 50% 4369 | -10/Subcaves | Lost 6 parts (1p3n2w) 4489 | -10/Subcaves | Build established: Mutant 5215 | -10/Subcaves | A swath of the cavern ceiling suddenly collapsed 5234 | -10/Subcaves | Discovered new exit (range 7) 5340 | -10/Subcaves | Core integrity fell below 20% 5344 | -10/Subcaves | Entered Recycling 5347 | -7/Recycling | Found Scrap Engine 5377 | -7/Recycling | Destroyed by Y-54 Guardian with Flak Gun Last Messages --------------- effect. 05258_ S-10 Pest knocked back. 05259_ S-10 Pest system terminally corrupted. 05260_ Acquired 22 matter. 05267_ Destroyed Flight Unit. 05269_ Flight Unit melted. 05269_ S-10 Pest destroyed. 05271_ Acquired 17 matter. 05275_ Lgt. Ion Engine fries itself beyond repair. 05318_ Machine disabled. 05335_ Structural Scanner destroyed. A mysterious object appears at your location! LOCATION=UNKNOWN GOAL=ESCAPE 05347_ Acquired Scrap Engine. 05354_ Y-54 Guardian springs to life. 05358_ Lgt. Armor Plating destroyed. 05367_ Lgt. Nuclear Core destroyed. 05376_ Overheating: Energy bleed (-43). Map ----- +----------------------------------------------------+ | ????????????????????????????????????? | | ????????????????????????????????????? | | ????????????????????????????????????? | | ????????????????????????????????????? | | ????????????????????????????????????? | | ????????????????????????????????????? | | ????????????????????????????????????? | | ????????????????????????????????????? | | ????????????????????????????????????? | | ????????????????????????????????????? | | ????????????????????????????????????? | | ????????????????????????????????????? | | ????????????????????????????????????? | | ????????????????????????????????????? | | ????????????????????????????????????? | | ????????????????????????????????????? | | ????????????????????????????????????? | | ????????????????????????????????????? | | ????????????????????????????????????? | | ????????????????????????????????????? | | ????????????????????##??????????????? | | ??????????????????%%;#??????????????? | | ?????????######## Y#??????????????? | | ?????????# #???????????????? | | ?????????# #???????????????? | | ?????????# @ ;#??????????????? | | ?????????############???????????????? | | ????????????????????????????????????? | | ????????????????????????????????????? | | ????????????????????????????????????? | | ????????????????????????????????????? | | ????????????????????????????????????? | | | | | | | | | | | | | | | | | | | | | | | | | | | | | | | | | | | | | +----------------------------------------------------+ Best States ------------- Heat Dissipation 25 Energy Generation 15 Energy Capacity 250 Matter Stores 300 Matter Capacity 300 Sight Range 16 Terrain Scan Range 16 Terrain Scan Density 10 Armor Coverage 150 Evasion (%) 40 Recoil Reduction 2 Item Schematics ----------------- None Robot Schematics ------------------ None Fabricated ------------ Nothing Alien Tech Used ----------------- None Achievements -------------- None Challenges ------------ None Game ------ Seed FocalShieldDetonator Manual? 0 Play Time 00:24:31 Cumulative 90.2 hours Start 2024.04.21 @ 07:38:47 End 2024.04.21 @ 13:43:08 Sessions 1 Manual Loads 0 Difficulty Rogue Special Mode None Game No. 105 Rogue 105 Adventurer 0 Explorer 0 Win Type - Total 0 Types 0/0/0/0/0/0/0/0/0 Lore% 26 Gallery% 50 Achievement% 39 Wizard Run 0 Options --------- Layout 1 ASCII 0 Keyboard 1 Movement Vi Keybinds 0 Fullscreen 1 Font 24/Smallcaps Map View 50x35 Zoom Use 0% Tactical HUD 1 Map Filters NONE Filters NONE Steam 1 RUN: bfe5cd06-3979-4542-a3f9-a9a54ccbb23f